bitfinex/quotes_ETHUSD_20250808
["timestamp","ask_amount","ask_price","bid_price","bid_amount"]
[1754658716500,0.042,3903.9,3903.8,10.7465737]
[1754658717001,0.042,3903.9,3903.8,11.2025737]
[1754658718402,0.042,3903.9,3903.8,10.2485737]
[1754658718586,0.967,3903.9,3903.8,9.97960663]
[1754658718905,0.5074,3903.9,3903.8,9.97960663]
[1754658719464,0.042,3903.9,3903.8,9.97960663]
[1754658719992,0.042,3903.9,3903.8,10.47760663]
[1754658722919,0.042,3903.9,3903.8,10.93360663]
[1754658723621,0.042,3903.9,3903.8,13.34463652]
[1754658725626,0.042,3903.9,3903.8,12.88863652]
[1754658725827,0.042,3903.9,3903.8,12.39063652]
[1754658726030,0.042,3903.9,3903.8,13.34463652]
[1754658730531,0.042,3903.9,3903.8,12.39063652]
[1754658731397,0.5074,3903.9,3903.8,12.39063652]
[1754658732610,0.042,3903.9,3903.8,12.39063652]
[1754658733205,0.042,3903.9,3903.8,12.88863652]
[1754658733406,0.042,3903.9,3903.8,23.9596454]
[1754658734411,0.042,3903.9,3903.8,23.5036454]
[1754658735001,0.042,3903.9,3903.8,23.9596454]
[1754658738126,0.002,3904.3,3904.2,2.56134419]
[1754658738332,0.002,3904.3,3904.2,13.56048749]
[1754658738712,0.002,3904.3,3904.2,14.51448749]
[1754658744118,0.002,3904.3,3904.2,21.40048749]
[1754658745041,0.002,3904.3,3904.2,10.78547861]
[1754658745241,0.002,3904.3,3904.2,21.40048749]
[1754658745824,0.002,3904.3,3904.2,17.51448749]
[1754658746024,0.002,3904.3,3904.2,21.39948749]
[1754658746444,0.002,3904.3,3904.2,20.44548749]
[1754658746642,0.002,3904.3,3904.2,20.91884451]
[1754658747165,0.002,3904.3,3904.2,21.38264451]
[1754658747469,0.002,3904.3,3904.2,17.49764451]
[1754658747763,0.002,3904.3,3904.2,21.38164451]
[1754658752637,0.002,3904.3,3904.2,10.22863563]
[1754658752835,0.002,3904.3,3904.2,5.93863563]
[1754658753144,0.9483,3904.3,3904.2,2.93863563]
[1754658753361,0.9483,3904.3,3904.2,2.68250121]
[1754658753556,0.002,3904.3,3904.2,2.68250121]
[1754658753737,0.002,3904.3,3904.2,3.16270121]
[1754658753937,0.002,3904.3,3904.2,2.68250121]
[1754658754774,0.002,3904.3,3904.2,5.68250121]
[1754658757765,0.002,3904.3,3904.2,6.16270121]
[1754658758269,0.002,3904.3,3904.2,8.48501442]
[1754658758460,0.002,3904.3,3904.2,8.94881442]
[1754658759341,0.002,3904.7,3904.6,2.5610818]
[1754658759541,0.002,3904.7,3904.6,13.17609068]
[1754658759759,0.002,3904.7,3904.6,13.78429068]
[1754658759955,0.002,3904.7,3904.6,3.59937129]
[1754658760159,0.002,3904.7,3904.6,2.6890818]
[1754658760359,0.9483,3904.7,3904.6,2.6890818]
[1754658760566,0.9483,3904.7,3904.6,5.6890818]
[1754658760771,0.9483,3904.7,3904.6,0.128]
[1754658762042,0.9483,3904.7,3904.6,2.6890818]
[1754658764532,0.002,3904.7,3904.6,2.58669261]
[1754658764686,0.4752,3904.7,3904.6,2.6890818]
[1754658765788,0.002,3904.7,3904.6,2.71469261]
[1754658765972,0.002,3904.7,3904.6,7.30377747]
[1754658766288,0.002,3904.7,3904.6,7.75836666]
[1754658768084,0.04,3904.9,3904.8,5.56095062]
[1754658768287,0.04,3904.9,3904.8,5.68895062]
[1754658768598,0.04,3904.9,3904.8,6.16915062]
[1754658768797,0.04,3904.9,3904.8,7.33246846]
[1754658769695,0.04,3904.9,3904.8,6.85226846]
[1754658769862,0.04,3904.9,3904.8,7.33246846]
[1754658774506,0.04,3904.9,3904.8,6.85226846]
[1754658774665,0.04,3904.9,3904.8,7.35096846]
[1754658778702,0.04,3904.9,3904.8,6.85226846]
[1754658778890,0.9731,3904.9,3904.8,5.68895062]
[1754658779097,0.9731,3904.9,3904.8,2.68895062]
[1754658779707,0.9731,3904.9,3904.8,6.97895062]
[1754658780889,0.9731,3904.9,3904.8,2.68895062]
[1754658782818,0.5072,3904.9,3904.8,2.68895062]
[1754658784125,0.04,3904.9,3904.8,2.68895062]
[1754658784988,0.04,3904.9,3904.8,3.18765062]
[1754658785195,0.04,3904.9,3904.8,6.21326012]
[1754658785390,0.04,3904.9,3904.8,6.61655062]
[1754658785620,0.04,3904.9,3904.8,10.90655062]
[1754658787420,0.04,3904.9,3904.8,10.47765062]
[1754658787916,0.04,3904.9,3904.8,9.97895062]
[1754658790516,0.04,3904.9,3904.8,10.47765062]
[1754658790718,0.04,3904.9,3904.8,9.97895062]
[1754658790926,0.04,3904.9,3904.8,12.25341386]
[1754658793219,0.04,3904.9,3904.8,16.13341386]
[1754658796033,0.04,3904.9,3904.8,11.32581386]
[1754658797317,0.04,3904.9,3904.8,12.25341386]
[1754658799040,0.04,3904.9,3904.8,11.82451386]
[1754658799348,0.04,3904.9,3904.8,12.25341386]
[1754658799718,0.04,3904.9,3904.8,11.82451386]
[1754658800433,0.04,3904.9,3904.8,15.70351386]
[1754658800938,0.04,3904.9,3904.8,16.13241386]
[1754658802416,0.04,3904.9,3904.8,12.25341386]
[1754658805269,0.04,3904.9,3904.8,12.29421386]
[1754658806125,0.04,3904.9,3904.8,11.82451386]
[1754658807028,0.04,3904.9,3904.8,12.29421386]
[1754658807765,0.002,3905.1,3905.0,16.17582834]
[1754658807965,0.002,3905.1,3905.0,17.5813678]
[1754658808263,0.002,3905.1,3905.0,18.6704678]
[1754658809324,0.002,3905.1,3905.0,18.2007678]
[1754658810450,0.002,3905.1,3905.0,18.6704678]
[1754658810838,0.002,3905.1,3905.0,18.2007678]
[1754658811932,0.002,3905.1,3905.0,18.6704678]
[1754658812347,0.002,3905.1,3905.0,22.9604678]
[1754658812527,0.002,3905.1,3905.0,18.6704678]
[1754658813861,0.002,3905.1,3905.0,22.5464678]
[1754658814354,0.002,3905.1,3905.0,22.0767678]
[1754658815168,0.002,3905.1,3905.0,22.5464678]
[1754658816840,0.002,3905.1,3905.0,22.0767678]
[1754658817040,1e-08,3905.3,3905.2,5.56068831]
[1754658817245,1e-08,3905.3,3905.2,10.78355155]
[1754658817449,1e-08,3905.3,3905.2,11.87265155]
[1754658817663,1e-08,3905.9,3905.8,16.17530382]
[1754658817973,1e-08,3905.9,3905.8,20.05130382]
[1754658818140,1e-08,3905.9,3905.8,22.41794328]
[1754658818342,1e-08,3905.9,3905.8,22.54594328]
[1754658820476,1e-08,3905.9,3905.8,23.09594328]
[1754658820679,1e-08,3905.9,3905.8,23.35234328]
[1754658822184,1e-08,3906.9,3906.8,5.5596396]
[1754658822382,1e-08,3906.9,3906.8,20.86458463]
[1754658822590,1e-08,3906.9,3906.8,20.99258463]
[1754658823170,1e-08,3906.9,3906.8,21.48398463]
[1754658823788,1e-08,3906.9,3906.8,21.95368463]
[1754658824609,1e-08,3906.9,3906.8,22.50368463]
[1754658827148,0.04,3907.9,3907.8,2.55898459]
[1754658827353,0.04,3907.9,3907.8,17.30889193]
[1754658827667,0.04,3907.9,3907.8,20.30889193]
[1754658827862,0.04,3907.9,3907.8,20.43689193]
[1754658829147,0.9296,3907.9,3906.7,3.878]
[1754658829401,3.06079488,3907.8,3906.5,3.894]
[1754658829590,0.5018,3907.7,3906.4,14.50900888]
[1754658829886,0.0705,3907.6,3907.0,2.55949999]
[1754658830098,0.42641647,3907.6,3907.0,2.55949999]
[1754658830281,0.35591647,3907.6,3907.0,2.55949999]
[1754658830486,0.5018,3907.5,3907.0,2.55949999]
[1754658830797,0.0705,3907.4,3907.0,2.55949999]
[1754658831396,0.5018,3907.3,3906.7,3.0]
[1754658831547,0.0705,3907.2,3906.6,2.55971534]
[1754658831747,0.0705,3907.2,3906.4,3.0]
[1754658831980,0.4313,3907.1,3906.9,3.0]
[1754658832360,0.0705,3907.0,3906.9,3.0]
[1754658832695,0.5018,3907.0,3906.8,3.0]
[1754658832991,0.0705,3906.9,3906.8,3.0]
[1754658833293,0.5018,3906.9,3906.8,2.5596396]
[1754658833592,0.4313,3906.9,3906.8,2.5596396]
[1754658833745,0.4313,3906.9,3905.5,11.08470888]
[1754658833947,0.4313,3906.9,3906.0,2.56111683]
[1754658833948,0.0705,3906.8,3906.0,2.56111683]
[1754658834165,0.30613242,3906.7,3906.0,0.001]
[1754658834395,0.4656,3906.7,3906.0,0.001]
[1754658834591,0.0705,3906.6,3906.0,0.001]
[1754658834761,0.4656,3906.7,3906.1,2.5600983]
[1754658834950,0.4516,3906.6,3906.0,5.56113972]
[1754658835145,2.55958953,3906.9,3906.1,3.01163649]
[1754658835369,2.55958953,3906.9,3906.1,2.56003649]
[1754658835370,0.4656,3906.5,3906.1,2.56003649]
[1754658835590,0.4656,3906.7,3906.1,2.56003649]
[1754658835751,0.4656,3906.4,3906.1,2.56003649]
[1754658835955,0.4656,3906.3,3906.1,2.56003649]
[1754658836149,0.4656,3906.7,3906.1,2.56003649]
[1754658836392,0.4656,3906.6,3906.1,2.5600926]
[1754658836587,0.4656,3906.7,3906.1,3.0116926]
[1754658836887,0.4656,3906.7,3906.1,3.01168002]
[1754658836888,0.4656,3906.5,3906.1,3.01168002]
[1754658837056,0.4656,3906.5,3906.2,0.4516]
[1754658837383,0.4656,3906.4,3906.2,0.4516]
[1754658838085,0.4656,3906.7,3906.0,0.001]
[1754658838086,0.4656,3906.7,3906.3,0.4516]
[1754658838272,0.4656,3907.0,3906.5,2.55979851]
[1754658838474,0.4656,3906.9,3906.5,2.55979851]
[1754658838667,0.4656,3906.8,3906.5,2.55979851]
[1754658838861,0.4656,3906.7,3906.4,2.55988811]
[1754658839050,0.4656,3906.7,3906.5,5.55981798]
[1754658839250,0.4656,3906.6,3906.5,5.55981798]
[1754658839888,0.4656,3906.6,3906.5,5.68781798]
[1754658840182,0.43676,3907.0,3906.6,2.55973918]
[1754658840390,0.4656,3906.8,3906.7,2.55970512]
[1754658840590,0.4656,3907.3,3906.9,2.68750962]
[1754658840791,6.46006834,3907.7,3906.7,0.4516]
[1754658840792,2.55912741,3907.6,3906.8,2.55962478]
[1754658840988,1.11866274,3907.5,3906.9,3.4516]
[1754658841181,0.4656,3907.5,3907.4,0.128]
[1754658841379,0.4656,3907.5,3907.4,2.68724655]
[1754658842357,3.901,3907.7,3907.4,0.128]
[1754658842582,4.3666,3907.7,3907.6,0.128]
[1754658842785,0.04,3907.9,3907.6,0.128]
[1754658842786,0.04,3907.9,3907.7,2.55899061]
[1754658842985,0.04,3907.9,3907.8,2.55898459]
[1754658843289,0.94626,3907.9,3907.8,0.128]
[1754658843495,0.04,3907.9,3907.8,2.68698459]
[1754658844064,0.5056,3907.9,3907.8,2.68698459]
[1754658844600,0.5056,3907.9,3907.8,0.128]
[1754658848075,0.04,3907.9,3907.8,0.128]
[1754658848275,0.5056,3907.9,3907.8,0.128]
[1754658849292,0.5056,3907.9,3907.8,2.68698459]
[1754658849484,0.04,3907.9,3907.8,2.68698459]
[1754658849908,0.5056,3907.9,3907.8,0.128]
[1754658850403,0.5056,3907.9,3907.8,2.68698459]
[1754658851274,0.5056,3907.9,3907.8,0.128]
[1754658851506,4.15125471,3907.9,3907.8,0.0575]
[1754658851697,4.15125471,3907.9,3906.1,0.4516]
[1754658851698,2.55919337,3907.5,3906.1,0.4516]
[1754658851870,13.1743341,3907.3,3906.3,2.55990956]
[1754658852077,2.42975275,3907.2,3906.8,0.128]
[1754658852566,0.4656,3907.1,3906.8,0.128]
[1754658852874,0.4656,3907.0,3906.8,0.128]
[1754658853073,3.907,3906.9,3906.8,0.128]
[1754658853274,4.3726,3906.9,3906.8,0.128]
[1754658854108,3.907,3906.9,3906.8,0.128]
[1754658854646,3.907,3906.9,3906.8,0.5796]
[1754658854810,4.3415737,3906.9,3906.8,0.128]
[1754658855103,4.8071737,3906.9,3906.8,0.128]
[1754658856278,4.3415737,3906.9,3906.8,0.128]
[1754658856610,4.8071737,3906.9,3906.8,0.128]
[1754658856912,4.3415737,3906.9,3906.8,0.5796]
[1754658857387,3.907,3906.9,3906.8,0.5796]
[1754658858414,4.3726,3906.9,3906.8,0.128]
[1754658858928,6.93217408,3906.9,3906.8,0.128]
[1754658859100,4.3726,3906.9,3906.8,0.128]
[1754658859302,2.55986395,3906.5,3906.0,0.001]
[1754658859529,3.906,3906.4,3906.1,0.128]
[1754658859732,3.907,3906.3,3906.1,0.128]
[1754658859937,4.3726,3906.3,3906.1,0.128]
[1754658860124,3.907,3906.3,3906.1,0.128]
[1754658860530,3.907,3906.3,3906.1,0.5796]
[1754658860843,3.907,3906.3,3906.2,2.56003276]
[1754658861133,3.907,3906.3,3906.2,3.47093276]
[1754658862207,3.907,3906.3,3906.2,4.08693744]
[1754658864114,3.907,3906.3,3906.2,7.08693744]
[1754658864702,3.907,3906.3,3906.2,6.47093276]
[1754658864908,3.907,3906.3,3906.2,6.01163276]
[1754658865909,3.907,3906.3,3906.2,6.46143276]
[1754658866338,3.907,3906.3,3906.2,3.0]
[1754658866511,4.3562,3906.3,3906.2,3.0]
[1754658867541,3.907,3906.3,3906.2,3.0]
[1754658867839,3.907,3906.3,3906.2,6.02363276]
[1754658868010,3.907,3906.3,3906.2,3.0]
[1754658868855,5.04779903,3906.3,3906.1,0.128]
[1754658869007,2.5600983,3906.1,3906.0,0.001]
[1754658869530,3.0092983,3906.1,3906.0,0.001]
[1754658869707,3.0348739,3906.1,3906.0,0.001]
[1754658869910,5.0465839,3906.1,3906.0,0.001]
[1754658871049,3.0092983,3906.1,3906.0,0.001]
[1754658872314,3.4738983,3906.1,3906.0,0.001]
[1754658873816,4.0238983,3906.1,3906.0,0.001]
[1754658874048,4.1774739,3906.1,3906.0,0.001]
[1754658875332,4.1518983,3906.1,3906.0,0.001]
[1754658875531,5.21634301,3906.1,3906.0,0.001]
[1754658878374,9.12034301,3906.1,3906.0,0.001]
[1754658879597,22.35402126,3906.1,3906.0,0.001]
[1754658884982,22.35402126,3906.1,3905.6,0.001]
[1754658884983,3.11036049,3905.7,3905.6,0.001]
[1754658885190,7.9890168,3905.7,3905.6,0.001]
[1754658885375,7.9634412,3905.7,3905.6,0.001]
[1754658885577,11.4126412,3905.7,3905.6,0.001]
[1754658888684,11.4126412,3905.7,3905.6,1e-08]
[1754658890106,6.11055717,3905.4,3905.3,1e-08]
[1754658890309,23.24723542,3905.4,3905.3,1e-08]
[1754658890490,23.82443542,3905.4,3905.3,1e-08]
[1754658892673,21.18578941,3905.4,3905.3,1e-08]
[1754658893909,21.28842041,3905.4,3905.3,1e-08]
[1754658894209,23.8437105,3905.4,3905.3,1e-08]
[1754658896810,23.3945105,3905.4,3905.3,1e-08]
[1754658897014,23.8292105,3905.4,3905.3,1e-08]
[1754658898035,23.8292105,3905.4,3904.8,0.001]
[1754658898036,2.56080695,3905.1,3904.8,0.001]
[1754658898183,2.56080695,3905.1,3904.6,0.001]
[1754658898184,0.55,3904.8,3904.6,0.001]
[1754658898517,26.36262405,3904.7,3904.6,0.001]
[1754658898721,26.33704845,3904.7,3904.6,0.001]
[1754658899032,26.77174845,3904.7,3904.6,0.001]
[1754658899585,26.87439145,3904.7,3904.6,0.001]
[1754658899907,29.42968154,3904.7,3904.6,0.001]
[1754658900914,28.99498154,3904.7,3904.6,0.001]
[1754658901096,28.99498154,3904.7,3904.6,0.4619]
[1754658905636,28.99498154,3904.7,3904.3,0.001]
[1754658905637,3.11121299,3904.4,3904.3,0.001]
[1754658905836,22.89127438,3904.4,3904.3,0.001]
[1754658906147,23.42839878,3904.4,3904.3,0.001]
[1754658906633,23.42839878,3904.4,3903.9,0.001]
[1754658906634,6.1114754,3904.0,3903.9,0.001]
[1754658906842,20.60650764,3904.0,3903.9,0.001]
[1754658907022,21.16920764,3904.0,3903.9,0.001]
[1754658907335,23.72449773,3904.0,3903.9,0.001]
[1754658907537,23.28979773,3904.0,3903.9,0.4619]
[1754658909041,23.75169773,3904.0,3903.9,0.4619]
[1754658909242,23.75169773,3904.0,3903.9,0.001]
[1754658909537,24.18639773,3904.0,3903.9,0.001]
[1754658911355,3.11173788,3903.6,3903.4,0.001]
[1754658911508,20.63241134,3903.5,3903.4,0.001]
[1754658911830,20.73483574,3903.5,3903.4,0.001]
[1754658912032,20.73483574,3903.5,3903.4,0.4619]
[1754658914006,20.73483574,3903.5,3903.4,0.001]
[1754658914213,23.72482583,3903.5,3903.4,0.001]
[1754658915967,24.22672583,3903.5,3903.4,0.001]
[1754658917647,23.79202583,3903.5,3903.4,0.001]
[1754658918767,23.79202583,3903.5,3903.4,0.4619]
[1754658921668,24.22672583,3903.5,3903.4,0.001]
[1754658924576,24.22672583,3903.5,3903.1,0.5019]
[1754658924577,6.1120004,3903.2,3903.1,0.041]
[1754658924777,21.21411333,3903.2,3903.1,0.041]
[1754658924980,21.21411333,3903.2,3902.9,0.4582]
[1754658924981,0.55,3902.9,3902.7,0.4592]
[1754658925290,27.21727083,3902.8,3902.7,0.001]
[1754658925489,6.11232864,3902.7,3902.3,0.001]
[1754658925659,8.37378219,3902.7,3902.3,0.001]
[1754658926192,8.37378219,3902.7,3902.6,0.4592]
[1754658926757,8.37378219,3902.7,3902.6,0.001]
[1754658927188,8.37378219,3902.7,3902.6,0.4592]
[1754658927390,8.37378219,3902.7,3902.6,0.001]
[1754658927968,8.83198219,3902.7,3902.6,0.4592]
[1754658930163,8.83198219,3902.7,3902.6,0.001]
[1754658930497,9.26438219,3902.7,3902.6,0.001]
[1754658931761,8.83198219,3902.7,3902.6,0.4592]
[1754658934787,13.16038219,3902.7,3902.6,0.001]
[1754658935189,13.16038219,3902.7,3902.6,1e-08]
[1754658935717,3.55,3902.3,3902.1,1e-08]
[1754658935922,20.6282648,3902.2,3902.1,1e-08]
[1754658936124,20.7306892,3902.2,3902.1,1e-08]
[1754658936721,20.85822427,3902.2,3902.1,1e-08]
[1754658936905,20.85922427,3902.2,3902.1,1e-08]
[1754658937106,8.92348212,3902.2,3902.1,0.46280001]
[1754658937341,23.41451436,3902.2,3902.1,0.46280001]
[1754658937817,23.41451436,3902.2,3902.1,0.92100001]
[1754658938721,23.41451436,3902.2,3902.1,0.92200001]
[1754658939692,19.51851436,3902.2,3902.1,0.92200001]
[1754658939891,23.41451436,3902.2,3902.1,0.92200001]
[1754658940825,9.56627105,3902.2,3902.1,0.92200001]
[1754658941048,7.35698096,3902.2,3902.1,0.92200001]
[1754658941427,7.90698096,3902.2,3902.1,0.92200001]
[1754658942331,4.01098096,3902.2,3902.1,0.92200001]
[1754658942530,4.667324,3902.2,3902.1,0.92200001]
[1754658942737,3.897,3902.2,3902.1,0.92200001]
[1754658943247,0.770144,3902.3,3902.1,0.92200001]
[1754658943444,0.770144,3902.3,3902.2,0.4582]
[1754658943748,6.156,3902.8,3902.2,11.2068588]
[1754658943910,6.156,3902.8,3902.6,2.56233335]
[1754658943911,3.898,3902.7,3902.6,2.56233335]
[1754658944394,6.156,3902.8,3902.7,2.56232864]
[1754658944597,6.156,3902.8,3902.7,4.00860692]
[1754658944816,0.1319374,3903.9,3902.7,1.44627828]
[1754658944817,0.769893,3903.6,3902.7,1.44627828]
[1754658944998,0.769893,3903.6,3903.4,2.56186913]
[1754658945197,3.903,3903.5,3903.4,2.68986913]
[1754658945397,3.903,3903.5,3903.4,3.61086913]
[1754658945648,3.903,3903.5,3903.4,4.22815133]
[1754658946146,3.903,3903.5,3903.4,1.6662822]
[1754658946502,3.903,3903.5,3903.4,4.22815133]
[1754658946698,3.902,3903.5,3903.4,4.22815133]
[1754658948139,3.901,3903.5,3903.4,4.22815133]
[1754658948340,0.002,3903.5,3903.4,7.22815133]
[1754658948507,3.901,3903.5,3903.4,7.22815133]
[1754658949408,0.002,3903.5,3903.4,7.22815133]
[1754658955344,0.002,3903.5,3903.4,11.51815133]
[1754658956050,0.002,3903.9,3903.8,2.56160663]
[1754658956276,0.002,3903.9,3903.8,6.39955212]
[1754658956429,0.002,3903.9,3903.8,6.37393606]
[1754658956622,0.002,3903.9,3903.8,11.69643606]
[1754658956819,0.002,3903.9,3903.8,11.56843606]
[1754658957170,0.002,3904.3,3904.2,5.56134419]
[1754658957316,0.002,3904.3,3904.2,16.95388922]
[1754658957517,0.002,3904.3,3904.2,17.98638922]
[1754658958670,0.002,3904.3,3904.2,7.39135698]
[1754658959047,0.002,3904.3,3904.2,3.92551279]
[1754658959223,0.002,3904.3,3904.2,3.5816]
[1754658959559,0.002,3904.3,3904.2,6.59384419]
[1754658960669,0.002,3904.3,3904.2,4.0325]
[1754658960823,0.4696,3904.3,3904.2,0.128]
[1754658961748,0.002,3904.3,3904.2,0.5816]
[1754658961955,0.002,3904.3,3904.2,1.0325]
[1754658962117,0.002,3904.3,3904.2,3.59384419]
[1754658962318,0.002,3904.3,3904.2,1.0325]
[1754658962676,3.903,3904.3,3904.2,11.15909419]
[1754658962855,0.002,3904.3,3904.2,11.28709419]
[1754658963370,0.002,3904.7,3904.6,16.15611404]
[1754658963844,0.002,3904.7,3904.6,17.18861404]
[1754658964444,1e-08,3904.7,3904.6,17.18861404]
[1754658964754,1e-08,3904.7,3904.6,18.92048454]
[1754658964952,1e-08,3904.9,3904.8,2.56095062]
[1754658965118,1e-08,3904.9,3904.8,5.58656012]
[1754658965321,1e-08,3904.9,3904.8,6.59345062]
[1754658966442,1e-08,3904.9,3904.8,7.14345062]
[1754658966634,1e-08,3904.9,3904.8,11.66573282]
[1754658966837,1e-08,3904.9,3904.8,24.89009742]
[1754658975551,1e-08,3904.9,3904.8,29.18009742]
[1754658975962,0.002,3905.6,3905.5,5.56049161]
[1754658976168,0.002,3905.6,3905.5,9.85049161]
[1754658976481,0.002,3905.6,3905.5,11.28624161]
[1754658976949,0.002,3905.6,3905.5,10.38174161]
[1754658977551,0.4696,3905.6,3905.5,10.38174161]
[1754658977960,0.002,3905.6,3905.5,10.38174161]
[1754658978165,0.002,3905.6,3905.5,10.83534161]
[1754658978877,0.002,3905.6,3905.5,10.38174161]
[1754658979584,0.002,3905.6,3905.5,10.83534161]
[1754658979977,0.002,3905.6,3905.5,10.38174161]
[1754658981856,0.002,3905.6,3905.5,10.83534161]
[1754658982057,0.002,3905.6,3905.5,11.28624161]
[1754658982408,0.002,3905.6,3905.5,10.38174161]
[1754658982897,0.4696,3905.6,3905.5,9.97849161]
[1754658986894,0.9278,3905.6,3905.5,9.97849161]
[1754658987594,0.4696,3905.6,3905.5,9.97849161]
[1754658988480,0.4657,3905.6,3905.5,9.97849161]
[1754658989392,0.002,3905.6,3905.5,9.97849161]
[1754658990792,0.002,3905.6,3905.5,10.46179161]
[1754658991091,0.002,3905.6,3905.5,13.06821211]
[1754658992808,0.002,3905.6,3905.5,9.97849161]
[1754658993101,0.9239,3905.6,3905.5,9.97849161]
[1754658995268,0.002,3905.6,3905.5,9.97849161]
[1754658995681,0.002,3905.6,3905.5,10.46179161]
[1754658997594,0.002,3905.6,3905.5,9.97849161]
[1754658999315,0.002,3905.6,3905.5,13.24536886]
[1754659002611,0.002,3905.6,3905.5,12.29076886]
[1754659003111,0.002,3905.6,3905.5,12.77406886]
[1754659004776,0.002,3905.6,3905.5,9.97849161]
[1754659004777,0.4657,3905.6,3905.5,9.97849161]
[1754659005185,0.002,3905.6,3905.5,9.97849161]
[1754659005900,0.002,3905.6,3905.5,10.46179161]
[1754659006414,0.002,3905.6,3905.5,10.93309161]
[1754659007716,0.002,3905.6,3905.5,14.82909161]
[1754659009537,0.002,3905.6,3905.5,10.93309161]
[1754659010911,0.002,3905.6,3905.5,9.97849161]
[1754659011113,0.4657,3905.6,3905.5,9.97849161]
[1754659011837,0.002,3905.6,3905.5,10.46179161]
[1754659012147,0.002,3905.6,3905.5,10.93309161]
[1754659012512,0.002,3905.6,3905.5,10.46179161]
[1754659013240,0.002,3905.6,3905.5,9.97849161]
[1754659013738,0.3699,3906.1,3906.0,2.56016385]
[1754659014125,0.3699,3906.1,3906.0,0.128]
[1754659015443,2.56030319,3905.8,3905.6,0.128]
[1754659015614,2.56036049,3905.7,3905.6,0.128]
[1754659015815,3.33006049,3905.7,3905.6,0.128]
[1754659016020,2.56045666,3905.6,3904.9,2.56083195]
[1754659016222,3.895,3905.5,3904.5,0.001]
[1754659016427,2.56067633,3905.3,3904.6,2.56103463]
[1754659016627,3.33027114,3905.4,3904.6,2.5610818]
[1754659016858,0.7697,3905.2,3904.6,2.5610818]
[1754659017055,2.56063468,3905.3,3905.0,0.128]
[1754659017355,0.7697,3905.1,3905.0,0.128]
[1754659020337,0.3699,3905.1,3905.0,0.128]
[1754659021064,0.3699,3905.3,3905.0,0.128]
[1754659021431,0.3998,3905.3,3905.0,0.128]
[1754659021632,0.3699,3905.2,3905.0,0.128]
[1754659024530,0.3998,3905.3,3905.0,0.128]
[1754659025069,3.895,3905.5,3905.0,2.68881811]
[1754659025273,3.895,3905.5,3905.0,0.128]
[1754659025473,4.2649,3905.5,3905.0,0.128]
[1754659025766,6.45549434,3905.5,3905.0,0.128]
[1754659025972,3.33026128,3905.4,3905.0,0.128]
[1754659026571,0.7697,3905.3,3905.0,0.128]
[1754659027150,0.3699,3905.2,3905.0,0.128]
[1754659027674,0.3699,3905.4,3905.0,0.128]
[1754659028092,3.893,3905.3,3905.1,0.9362]
[1754659028385,2.69016597,3906.0,3905.4,0.128]
[1754659028583,3.894,3905.9,3905.4,0.128]
[1754659028942,6.45423481,3905.9,3905.4,0.5961]
[1754659029148,3.894,3905.9,3905.4,3.156646]
[1754659029485,3.894,3905.8,3905.5,3.02858925]
[1754659029666,3.894,3905.8,3905.7,2.56036049]
[1754659029852,0.002,3906.0,3905.9,2.56022939]
[1754659030039,3.898,3906.0,3905.9,2.56022939]
[1754659030240,3.898,3906.0,3905.9,7.67190056]
[1754659030847,0.002,3906.0,3905.9,7.67190056]
[1754659032143,0.002,3906.0,3905.9,6.73570056]
[1754659032955,0.002,3906.0,3905.9,7.20380056]
[1754659033150,0.002,3906.0,3905.9,7.67190056]
[1754659040887,0.002,3906.0,3905.9,18.25036113]
[1754659042776,1e-08,3906.0,3905.9,18.12236113]
[1754659042970,1e-08,3906.0,3905.9,18.67236113]
[1754659043173,1e-08,3906.0,3905.9,18.80036113]
[1754659043689,1e-08,3906.0,3905.9,18.99007388]
[1754659044376,0.002,3906.4,3905.9,18.99007388]
[1754659044584,1e-08,3906.4,3906.3,16.2664278]
[1754659044785,1e-08,3906.4,3906.3,22.79727723]
[1754659044970,1e-08,3906.4,3906.3,23.68697723]
[1754659046999,1e-08,3906.4,3906.3,27.97697723]
[1754659048112,0.042,3906.9,3906.3,27.97697723]
[1754659048113,0.042,3906.9,3906.8,5.5596396]
[1754659048311,0.042,3906.9,3906.8,22.7999496]
[1754659048807,0.042,3906.9,3906.8,23.6896496]
[1754659049198,0.042,3906.9,3906.8,27.9796496]
[1754659050498,0.002,3907.3,3907.2,5.55937755]
[1754659050698,0.002,3907.3,3907.2,13.87237755]
[1754659051002,0.002,3907.3,3907.2,14.76207755]
[1754659051206,1e-08,3907.3,3907.2,14.76207755]
[1754659051369,1e-08,3907.3,3907.2,10.47207755]
[1754659051570,0.04,3907.9,3907.8,5.55898459]
[1754659051868,0.04,3907.9,3907.8,9.45398459]
[1754659052073,0.04,3907.9,3907.8,5.68698459]
[1754659054087,0.04,3907.9,3907.8,10.47168459]
[1754659054744,0.04,3907.9,3907.8,10.03708459]
[1754659055030,0.002,3908.6,3908.5,18.77483628]
[1754659055185,0.002,3908.6,3908.5,22.79783628]
[1754659055390,0.002,3908.6,3908.5,23.25293628]
[1754659055893,0.002,3908.6,3908.5,9.58352628]
[1754659056922,0.002,3908.6,3908.5,10.03862628]
[1754659057118,0.002,3908.6,3908.5,11.08609745]
[1754659058992,0.002,3908.6,3908.5,11.52069745]
[1754659059602,0.002,3908.6,3908.5,11.08609745]
[1754659059795,0.002,3908.6,3908.5,11.52069745]
[1754659060725,0.002,3908.6,3908.5,10.62799745]
[1754659061029,0.002,3908.6,3908.5,5.68652628]
[1754659065335,0.002,3908.6,3908.5,9.57852628]
[1754659065723,0.002,3908.6,3908.5,13.86852628]